bitfinex-derivatives/quotes_BTCF0:USTF0_20251023
["timestamp","ask_amount","ask_price","bid_price","bid_amount"]
[1761241328076,0.0321258,111060.0,111040.0,0.21471367]
[1761241328077,0.0048,111070.0,111060.0,0.1470099]
[1761241329672,0.0048,111070.0,111060.0,0.05699]
[1761241330268,0.0048,111070.0,111060.0,0.14701]
[1761241330976,0.20665367,111070.0,111060.0,0.05699]
[1761241331174,0.20717367,111070.0,111060.0,0.05699]
[1761241333369,0.20717367,111070.0,111060.0,0.03466]
[1761241333773,0.20717367,111070.0,111060.0,0.05699]
[1761241334276,0.20717367,111070.0,111060.0,0.1470099]
[1761241334581,0.53529367,111070.0,111060.0,0.1470099]
[1761241335371,0.53529367,111070.0,111060.0,0.01338]
[1761241336171,0.53529367,111070.0,111020.0,0.63288527]
[1761241336172,0.94529367,111070.0,111020.0,0.01338]
[1761241336376,0.20237367,111030.0,111020.0,0.1470424]
[1761241336576,0.20237367,111030.0,111020.0,0.05699]
[1761241336970,0.20237367,111030.0,111000.0,0.124728]
[1761241337176,0.20237367,111010.0,111000.0,0.05699]
[1761241337677,0.00052,111010.0,111000.0,0.05699]
[1761241338178,0.20185367,111010.0,111000.0,0.05699]
[1761241338373,0.20237367,111010.0,111000.0,0.05699]
[1761241339379,0.53045367,111010.0,111000.0,0.05699]
[1761241339873,0.20185367,111010.0,111000.0,0.1470586]
[1761241340079,0.20185367,111010.0,111000.0,0.05699]
[1761241340080,0.3286,111010.0,111000.0,0.05699]
[1761241340868,0.20237367,111020.0,111000.0,0.05699]
[1761241341072,0.53045367,111010.0,111000.0,0.05699]
[1761241341468,0.53045367,111010.0,111000.0,0.03466]
[1761241341672,0.53045367,111010.0,111000.0,0.01338]
[1761241342387,0.32912,111010.0,111000.0,0.05699]
[1761241342681,0.53045367,111010.0,111000.0,0.05699]
[1761241343083,0.53045367,111010.0,111000.0,0.03466]
[1761241343583,0.53045367,111010.0,111000.0,0.01338]
[1761241343983,0.53045367,111010.0,110980.0,0.12901481]
[1761241344184,0.20185367,111000.0,110980.0,0.12901481]
[1761241344383,0.20237367,111000.0,110990.0,0.0442]
[1761241344583,0.53049367,111000.0,110990.0,0.0442]
[1761241345271,0.20237367,111000.0,110990.0,0.0442]
[1761241345477,0.53049367,111000.0,110990.0,0.0442]
[1761241347083,0.20237367,111000.0,110990.0,0.0442]
[1761241347274,0.53049367,111000.0,110990.0,0.0442]
[1761241347681,0.53049367,111000.0,110980.0,0.06219511]
[1761241347886,0.20237367,110990.0,110980.0,0.06219511]
[1761241348187,0.00104,110990.0,110980.0,0.06219511]
[1761241348771,0.20237367,110990.0,110980.0,0.06219511]
[1761241348971,0.20237367,110990.0,110980.0,0.01788511]
[1761241349371,0.20237367,110990.0,110980.0,0.00450511]
[1761241349984,0.60237367,110990.0,110980.0,0.00450511]
[1761241350684,0.60237367,110990.0,110980.0,0.03959511]
[1761241350881,0.93049367,110990.0,110980.0,0.03959511]
[1761241351072,0.93049367,110990.0,110980.0,0.00450511]
[1761241351277,0.60237367,110990.0,110980.0,0.01811511]
[1761241351478,0.93053367,110990.0,110980.0,0.01811511]
[1761241351680,0.00052,110990.0,110980.0,0.15250991]
[1761241351880,0.32816,110990.0,110980.0,0.55250971]
[1761241355087,0.20237367,111010.0,111000.0,0.05792]
[1761241355385,0.3292,111010.0,111000.0,0.05792]
[1761241355587,0.00104,111010.0,111000.0,0.05792]
[1761241355781,0.3292,111010.0,111000.0,0.05792]
[1761241356384,0.3292,111010.0,111000.0,0.1479885]
[1761241356385,0.00104,111010.0,111000.0,0.1479885]
[1761241356595,0.20237367,111030.0,111020.0,0.05792]
[1761241356887,0.66592429,111030.0,111000.0,0.05792]
[1761241357190,0.00104,111010.0,111000.0,0.1479886]
[1761241357389,0.00104,111010.0,111000.0,0.05792]
[1761241358078,0.33776429,111010.0,110980.0,0.06242511]
[1761241358282,0.00104,110990.0,110980.0,0.06242511]
[1761241358482,0.66592429,110990.0,110980.0,0.00450511]
[1761241358989,0.66592429,110990.0,110980.0,0.03959511]
[1761241359189,0.66592429,110990.0,110980.0,0.06242511]
[1761241359378,0.3292,110990.0,110980.0,0.06242511]
[1761241359582,0.3292,110990.0,110980.0,0.01811511]
[1761241361293,0.66592429,110990.0,110980.0,0.01811511]
[1761241362384,1.06592429,110990.0,110980.0,0.00450511]
[1761241363590,1.14653872,110990.0,110980.0,0.00450511]
[1761241364184,0.08113443,110990.0,110980.0,0.06242511]
[1761241364385,0.0331658,110990.0,110980.0,0.06242511]
[1761241364689,0.3292,110990.0,110980.0,0.06242511]
[1761241364894,0.36989009,110990.0,110980.0,0.06242511]
[1761241365092,0.3613258,110990.0,110980.0,0.06242511]
[1761241365988,0.69805009,110990.0,110980.0,0.06242511]
[1761241366190,0.40981443,110990.0,110980.0,0.06242511]
[1761241366593,0.08165443,110990.0,110980.0,0.06242511]
[1761241366787,0.40981443,110990.0,110980.0,0.06242511]
[1761241367188,0.37768863,110990.0,110980.0,0.06242511]
[1761241367785,0.36154224,110990.0,110980.0,0.06242511]
[1761241368194,0.03338224,110990.0,110980.0,0.06242511]
[1761241368389,0.03338224,110990.0,110980.0,0.15250981]
[1761241368390,0.36154224,110990.0,110980.0,0.15250981]
[1761241368897,0.03338224,110990.0,110980.0,0.15250981]
[1761241369095,0.36154564,110990.0,110980.0,0.15250981]
[1761241369393,0.41003427,110990.0,110980.0,0.15250981]
[1761241370489,0.03234564,110990.0,110980.0,0.15250981]
[1761241370694,0.36050564,110990.0,110980.0,0.15250981]
[1761241371085,0.36154564,110990.0,110980.0,0.06242511]
[1761241371789,0.41003427,110990.0,110980.0,0.06242511]
[1761241372381,0.41003427,110990.0,110980.0,0.01811511]
[1761241372890,0.74675856,110990.0,110980.0,0.06289511]
[1761241373095,0.41003427,110990.0,110980.0,0.15297981]
[1761241373688,0.3292,110990.0,110980.0,0.15297981]
[1761241373895,0.3292,110990.0,110980.0,0.06289511]
[1761241374392,0.33813494,110990.0,110980.0,0.06289511]
[1761241377692,0.33813494,110990.0,110980.0,0.00450511]
[1761241377893,0.67485923,110990.0,110980.0,0.00450511]
[1761241378099,1.10720487,110990.0,110980.0,0.00450511]
[1761241378294,1.1556935,110990.0,110980.0,0.00450511]
[1761241378595,1.12334786,110990.0,110980.0,0.00450511]
[1761241378996,1.07485923,110990.0,110980.0,0.00450511]
[1761241379194,1.07485923,110990.0,110960.0,0.01338]
[1761241379396,0.37013499,110970.0,110960.0,0.01338]
[1761241379596,0.69821499,110970.0,110960.0,0.01338]
[1761241380186,0.3614907,110970.0,110960.0,0.05997]
[1761241380400,0.32912,110970.0,110960.0,0.1500708]
[1761241380695,0.32808,110970.0,110960.0,0.1500708]
[1761241381198,0.32912,110970.0,110960.0,0.1500708]
[1761241381894,0.0323707,110980.0,110970.0,0.1366827]
[1761241382094,0.74573104,111000.0,110980.0,0.1493645]
[1761241382291,0.00104,110990.0,110980.0,0.05928]
[1761241382796,0.41004675,111000.0,110980.0,0.1493646]
[1761241383097,0.32912,110990.0,110980.0,0.1493646]
[1761241384301,0.32912,111000.0,110990.0,0.1366664]
[1761241384686,0.0323707,111010.0,110990.0,0.1366664]
[1761241384891,0.0334107,111010.0,111000.0,0.1493483]
[1761241385094,0.3614907,111010.0,111000.0,0.1493483]
[1761241385294,0.32912,111010.0,111000.0,0.1493483]
[1761241386095,0.32912,111010.0,111000.0,0.05928]
[1761241386892,0.32912,111010.0,111000.0,0.1493483]
[1761241387296,0.32912,111010.0,111000.0,0.05928]
[1761241387696,0.69821499,111010.0,111000.0,0.05928]
[1761241387896,0.66584429,111010.0,111000.0,0.05928]
[1761241388100,0.32912,111010.0,111000.0,0.1493483]
[1761241388702,0.32912,111010.0,111000.0,0.05928]
[1761241390096,0.32912,111010.0,111000.0,0.03598]
[1761241390306,0.3614907,111010.0,111000.0,0.01269]
[1761241390491,0.3614107,111010.0,111000.0,0.01269]
[1761241390695,0.3614107,111010.0,111000.0,0.03598]
[1761241390906,0.3614107,111010.0,111000.0,0.05928]
[1761241391802,0.3614107,111010.0,110980.0,0.11180433]
[1761241391803,0.74669104,111010.0,110980.0,0.1493645]
[1761241391999,0.00104,110990.0,110980.0,0.1493645]
[1761241392303,0.32904,110990.0,110980.0,0.1493645]
[1761241393696,0.3654107,110990.0,110980.0,0.1493645]
[1761241395194,0.3794107,110990.0,110980.0,0.1493645]
[1761241396299,0.3794107,110990.0,110980.0,0.15829369]
[1761241396501,0.3793707,110990.0,110980.0,0.15829369]
[1761241396701,0.0514107,110990.0,110980.0,0.15829369]
[1761241396901,0.3793307,110990.0,110980.0,0.15829369]
[1761241398307,0.3793307,110990.0,110980.0,0.06820919]
[1761241398500,0.42788675,110990.0,110980.0,0.06820919]
[1761241398698,0.39551605,110990.0,110980.0,0.05928]
[1761241398902,0.73224034,110990.0,110960.0,0.1500677]
[1761241399102,0.00104,110970.0,110960.0,0.1589879]
[1761241399904,0.03341511,110970.0,110960.0,0.1589879]
[1761241400304,0.00104,110970.0,110960.0,0.1589879]
[1761241400511,0.01504,110970.0,110960.0,0.1589879]
[1761241401404,0.37529511,110970.0,110960.0,0.158991]
[1761241401610,0.37529511,110970.0,110960.0,0.05997]
[1761241401816,0.42485116,110970.0,110960.0,0.1500708]
[1761241402109,0.42485116,110970.0,110960.0,0.05997]
[1761241402814,0.42785116,110970.0,110960.0,0.05997]
[1761241403308,0.42785116,110970.0,110960.0,0.1500708]
[1761241403507,0.37929511,110970.0,110960.0,0.1500708]
[1761241403716,0.34692,110970.0,110960.0,0.1500708]
[1761241404012,0.33292,110970.0,110960.0,0.1500708]
[1761241404513,0.34692,110970.0,110960.0,0.1500708]
[1761241404816,1.2757194,110970.0,110940.0,0.00461956]
[1761241405112,0.00104,110930.0,110920.0,0.03387]
[1761241405312,0.66564429,110930.0,110900.0,0.09197259]
[1761241405618,0.00104,110930.0,110920.0,0.05509]
[1761241405808,0.00052,110930.0,110920.0,0.05509]
[1761241406015,0.32849386,110930.0,110920.0,0.05509]
[1761241406213,0.32901386,110930.0,110920.0,0.05509]
[1761241406407,0.00113386,110930.0,110920.0,0.1452233]
[1761241406618,0.32901386,110930.0,110920.0,0.1452233]
[1761241406909,0.33301386,110930.0,110920.0,0.1452233]
[1761241407115,0.33301386,110930.0,110920.0,0.05509]
[1761241407714,0.34701386,110930.0,110920.0,0.05509]
[1761241408217,0.68373815,110930.0,110920.0,0.05509]
[1761241408913,0.68373815,110930.0,110920.0,0.01277]
[1761241408914,0.68364429,110930.0,110920.0,0.01277]
[1761241409316,0.68364429,110930.0,110900.0,0.04965259]
[1761241409317,0.34692,110930.0,110900.0,0.09594259]
[1761241409512,0.00111787,110920.0,110900.0,0.06356836]
[1761241409814,0.3284,110910.0,110900.0,0.06356836]
[1761241410010,0.32848515,110910.0,110900.0,0.15371786]
[1761241410210,8.515e-05,110910.0,110900.0,0.15371786]
[1761241410414,0.32800515,110910.0,110900.0,0.15371786]
[1761241411011,8.515e-05,110910.0,110900.0,0.55371786]
[1761241411422,0.01308515,110910.0,110900.0,0.55371786]
[1761241412215,0.33776429,110950.0,110940.0,0.03675]
[1761241412419,0.33776429,110950.0,110940.0,0.05999]
[1761241412622,0.66568429,110950.0,110940.0,0.05999]
[1761241413323,0.00104,110950.0,110940.0,0.05999]
[1761241413619,0.34296,110950.0,110940.0,0.05999]
[1761241414317,0.01504,110950.0,110940.0,0.05999]
[1761241414515,0.34296,110950.0,110940.0,0.05999]
[1761241415020,0.34696,110950.0,110940.0,0.05999]
[1761241415714,0.018,110950.0,110940.0,0.150107]
[1761241415913,0.018,110950.0,110940.0,0.550107]
[1761241418914,0.01852,110950.0,110940.0,0.150107]
[1761241419516,0.018,110950.0,110940.0,0.150107]
[1761241420825,0.01904,110950.0,110940.0,0.150107]
[1761241421026,0.018,110950.0,110940.0,0.150107]
[1761241422320,0.21964954,110950.0,110940.0,0.05999]
[1761241422522,0.22016954,110950.0,110930.0,0.02305]
[1761241422719,0.53000954,110940.0,110920.0,0.0137]
[1761241423026,0.20216954,110930.0,110920.0,0.05999]
[1761241423737,0.20216954,110930.0,110900.0,0.10742016]
[1761241423738,0.20216954,110930.0,110900.0,0.13047016]
[1761241423929,0.53000954,110920.0,110910.0,0.04629]
[1761241424129,0.53000954,110920.0,110900.0,0.10742016]
[1761241424435,0.32784,110920.0,110900.0,0.15371786]
[1761241424738,0.53000954,110920.0,110910.0,0.1364314]
[1761241424939,0.53000954,110920.0,110910.0,0.04629]
[1761241425736,0.53000954,110920.0,110900.0,0.06356836]
[1761241425937,0.20216954,110910.0,110900.0,0.06456836]
[1761241426531,0.20216954,110910.0,110900.0,0.06356836]
[1761241426728,0.60216954,110910.0,110860.0,0.03688422]
[1761241426935,0.20112954,110880.0,110860.0,0.16594979]
[1761241427235,0.20112954,110890.0,110880.0,0.05999]
[1761241427429,0.52892954,110890.0,110880.0,0.07319895]
[1761241427635,0.20112954,110890.0,110880.0,0.05999]
[1761241427832,0.52892954,110890.0,110880.0,0.05999]
[1761241428032,0.52892954,110890.0,110880.0,0.0132022]
[1761241428842,0.53192954,110890.0,110880.0,0.0132022]
[1761241429539,0.53192954,110890.0,110880.0,0.0269022]
[1761241429741,0.53192954,110890.0,110880.0,0.0132022]
[1761241429932,0.7448,110890.0,110860.0,0.06249999]
[1761241430138,0.20112954,110870.0,110860.0,0.06249999]
[1761241430332,0.32784,110870.0,110860.0,0.06249999]
[1761241430529,0.72784,110870.0,110860.0,0.00250999]
[1761241430842,0.52896954,110870.0,110860.0,0.06249999]
[1761241431235,0.32784,110870.0,110860.0,0.06249999]
[1761241431441,0.52896954,110870.0,110860.0,0.06249999]
[1761241432140,0.52996954,110870.0,110860.0,0.06249999]
[1761241432336,0.001,110870.0,110860.0,0.15268209]
[1761241432542,0.14952,110870.0,110860.0,0.15268209]
[1761241432845,0.16352,110870.0,110860.0,0.15268209]
[1761241433140,0.015,110870.0,110860.0,0.15268209]
[1761241434237,0.015,110870.0,110860.0,0.55268209]
[1761241435040,0.20112954,110910.0,110900.0,0.05799]
[1761241435235,0.22040954,110910.0,110880.0,0.1037991]
[1761241435440,0.01928,110910.0,110890.0,0.04435]
[1761241435634,0.20112954,110900.0,110890.0,0.04435]
[1761241436436,0.20112954,110900.0,110880.0,0.1481517]
[1761241436634,0.20112954,110890.0,110880.0,0.06701384]
[1761241436834,0.52896954,110890.0,110880.0,0.05799]
[1761241437540,0.52896954,110890.0,110880.0,0.01364]
[1761241437836,0.53296954,110890.0,110870.0,0.134521]
[1761241438144,0.20112954,110880.0,110870.0,0.134521]
[1761241438441,0.33184,110890.0,110870.0,0.134521]
[1761241438639,0.53296954,110890.0,110880.0,0.1481558]
[1761241438943,0.53296954,110890.0,110880.0,0.1491558]
[1761241439438,0.53296954,110890.0,110880.0,0.1481558]
[1761241439643,0.34584,110890.0,110880.0,0.1481558]
[1761241439843,0.34184,110890.0,110880.0,0.1481558]
[1761241440046,0.34584,110890.0,110880.0,0.1481558]
[1761241440244,0.34584,110890.0,110880.0,0.05899]
[1761241440443,0.54696954,110890.0,110880.0,0.05899]
[1761241440635,0.014,110890.0,110880.0,0.1491558]
[1761241440837,0.34584,110890.0,110880.0,0.1491558]
[1761241441036,0.54696954,110890.0,110880.0,0.1491558]
[1761241441444,0.34584,110890.0,110880.0,0.1491558]
[1761241441838,0.54696954,110890.0,110880.0,0.1491558]
[1761241442038,0.018,110890.0,110880.0,0.1491558]
[1761241442233,0.018,110890.0,110880.0,0.5491558]
[1761241443349,0.018,110890.0,110880.0,0.75028534]
[1761241443844,0.03237511,110940.0,110910.0,0.1117179]
[1761241444044,0.47548954,110930.0,110920.0,0.05799]
[1761241445744,0.49048954,110930.0,110920.0,0.01464]
[1761241446137,0.49048954,110930.0,110920.0,0.05899]
[1761241446850,0.47948954,110930.0,110920.0,0.05799]
[1761241447054,0.49448954,110930.0,110920.0,0.001]
[1761241447250,0.49448954,110930.0,110920.0,0.01464]
[1761241447546,0.29236,110930.0,110920.0,0.1263533]
[1761241447742,0.49348954,110930.0,110920.0,0.1491233]
[1761241447939,0.018,110930.0,110920.0,0.1491233]
[1761241448142,0.49928954,110930.0,110920.0,0.1491233]
[1761241448644,0.21912954,110930.0,110920.0,0.1491233]
[1761241448850,0.54688954,110930.0,110920.0,0.1491233]
[1761241449052,0.54688954,110930.0,110920.0,0.05899]
[1761241449244,0.54688954,110930.0,110920.0,0.1491233]
[1761241449451,0.97688954,110930.0,110870.0,0.10269978]
[1761241449754,0.97688954,110930.0,110860.0,0.15068159]
[1761241449755,0.20112954,110880.0,110860.0,0.15068159]
[1761241450050,0.20112954,110920.0,110860.0,0.15068159]
[1761241450051,0.24212,110890.0,110880.0,0.05799]
[1761241451358,0.44324954,110890.0,110880.0,0.05799]
[1761241451653,0.44324954,110890.0,110860.0,0.03772999]
[1761241451854,0.20112954,110870.0,110860.0,0.06049999]
[1761241453552,0.20312954,110870.0,110860.0,0.06049999]
[1761241454452,0.20312954,110870.0,110860.0,0.07376087]
[1761241455146,0.20312954,110870.0,110860.0,0.02941087]
[1761241455459,0.20312954,110870.0,110860.0,0.05099087]
[1761241455761,0.20312954,110870.0,110860.0,0.03772999]
[1761241455952,0.20312954,110870.0,110860.0,0.06049999]
[1761241456150,0.20312954,110870.0,110860.0,0.00250999]
[1761241456358,0.20312954,110870.0,110860.0,0.03772999]
[1761241456664,0.20312954,110870.0,110860.0,0.06049999]
[1761241456847,0.53084954,110870.0,110860.0,0.06049999]
[1761241457052,0.53084954,110870.0,110860.0,0.00250999]
[1761241457252,0.53084954,110870.0,110860.0,0.01614999]
[1761241457754,0.53084954,110870.0,110860.0,0.03772999]
[1761241458054,0.93084954,110870.0,110850.0,8.539e-05]
[1761241458260,0.20112954,110860.0,110850.0,8.539e-05]
[1761241459753,0.20212954,110860.0,110850.0,0.00908539]
[1761241459954,0.20212954,110860.0,110850.0,0.01108539]
[1761241460460,0.80325908,110860.0,110820.0,0.00451162]
[1761241460667,0.20112954,110830.0,110820.0,0.01323923]
[1761241460855,0.56122465,110830.0,110820.0,0.01323923]
[1761241461360,0.56122465,110830.0,110790.0,0.0902373]
[1761241461361,0.96122465,110830.0,110790.0,0.0902373]
[1761241461556,0.20112954,110800.0,110790.0,0.04435]
[1761241461865,0.19536608,110800.0,110790.0,0.04435]
[1761241462065,0.19536608,110800.0,110790.0,0.134589]
[1761241462363,0.19536608,110800.0,110790.0,0.04435]
[1761241462560,0.39649562,110800.0,110780.0,0.15274615]
[1761241462859,0.20112954,110790.0,110780.0,0.15274615]
[1761241463064,0.5289948,110790.0,110780.0,0.06250325]
[1761241463357,0.5289948,110790.0,110780.0,0.01815325]
[1761241463560,0.2012348,110790.0,110780.0,0.15258045]
[1761241463759,0.5289948,110790.0,110780.0,0.15258045]
[1761241463966,0.2012348,110790.0,110780.0,0.15258045]
[1761241464265,0.5289948,110790.0,110780.0,0.15258045]
[1761241464462,0.00010526,110790.0,110780.0,0.15258045]
[1761241464773,0.2012348,110790.0,110780.0,0.06233325]
[1761241465268,0.2022348,110790.0,110780.0,0.06233325]
[1761241465455,0.00110526,110790.0,110780.0,0.06233325]
[1761241465758,0.2022348,110790.0,110780.0,0.06233325]
[1761241467456,0.5300348,110790.0,110780.0,0.06233325]
[1761241467662,0.5300348,110790.0,110780.0,0.03999325]
[1761241468059,0.5300348,110790.0,110780.0,0.01815325]
[1761241468261,0.52992954,110790.0,110780.0,0.01815325]
[1761241468462,0.52992954,110790.0,110780.0,0.03993325]
[1761241468651,0.53792954,110790.0,110780.0,0.03993325]
[1761241469052,0.54092954,110790.0,110780.0,0.01815325]
[1761241469557,0.54092954,110790.0,110780.0,0.06291325]
[1761241470163,0.21312954,110790.0,110780.0,0.15316045]
[1761241470368,0.25047655,110790.0,110780.0,0.15316045]
[1761241470672,0.01211655,110790.0,110780.0,0.15316045]
[1761241470971,0.33995655,110790.0,110780.0,0.15316045]
[1761241471558,0.01211655,110790.0,110780.0,0.55316045]
[1761241472167,0.00311655,110790.0,110780.0,0.55316045]
[1761241472464,0.01411655,110790.0,110780.0,0.15316045]
[1761241472660,0.21524609,110790.0,110780.0,0.15316045]
[1761241472868,0.21324609,110790.0,110780.0,0.15316045]
[1761241473065,0.01211655,110790.0,110780.0,0.15316045]
[1761241473454,0.21324609,110790.0,110780.0,0.15316045]
[1761241473767,0.21024609,110790.0,110780.0,0.15316045]
[1761241473967,0.21324609,110790.0,110780.0,0.15316045]
[1761241474162,0.21324609,110790.0,110780.0,0.06291325]
[1761241474468,0.21312954,110790.0,110780.0,0.06291325]
[1761241474662,0.21321316,110790.0,110780.0,0.01815325]
[1761241474858,0.21312954,110790.0,110780.0,0.01815325]
[1761241475254,0.21312954,110790.0,110780.0,0.03993325]
[1761241475467,0.54096954,110790.0,110780.0,0.15316045]
[1761241475659,0.54104051,110790.0,110780.0,0.15316045]
[1761241477274,0.21320051,110790.0,110780.0,0.15316045]
[1761241477460,0.54104051,110790.0,110780.0,0.15316045]
[1761241479166,0.01207097,110790.0,110780.0,0.55316045]
[1761241479367,0.0107265,110790.0,110780.0,0.75428999]
[1761241479568,0.20112954,110830.0,110820.0,0.05743]
[1761241479866,0.52896954,110830.0,110810.0,0.0902218]
[1761241480073,0.52896954,110830.0,110810.0,0.1349818]
[1761241480074,0.20112954,110820.0,110810.0,0.1349818]
[1761241480767,0.33800012,110820.0,110800.0,0.1476586]
[1761241480965,0.32784,110810.0,110800.0,0.1476554]
[1761241481469,0.32788688,110810.0,110800.0,0.1476554]
[1761241481676,0.665887,110810.0,110790.0,0.1349966]
[1761241481970,0.32788688,110810.0,110800.0,0.05743]
[1761241482165,0.665887,110810.0,110790.0,0.1120166]
[1761241482473,0.33800012,110800.0,110790.0,0.1349966]
[1761241482670,0.338047,110800.0,110790.0,0.1349991]
[1761241483577,0.665887,110800.0,110790.0,0.1349991]
[1761241483777,0.668887,110800.0,110790.0,0.1120191]
[1761241484273,0.668847,110800.0,110790.0,0.1120191]
[1761241484669,0.341047,110800.0,110790.0,0.1120191]
[1761241484869,0.668847,110800.0,110790.0,0.0902391]
[1761241485071,0.678847,110800.0,110790.0,0.0902391]
[1761241485575,0.678847,110800.0,110790.0,0.1349991]
[1761241486675,0.01304688,110800.0,110790.0,0.1349991]
[1761241486875,0.34084688,110800.0,110790.0,0.1349991]
[1761241487979,0.01304688,110800.0,110790.0,0.1349991]
[1761241488170,0.01504688,110800.0,110790.0,0.1349991]
[1761241488369,0.01504688,110800.0,110790.0,0.5349991]
[1761241488771,0.01204688,110800.0,110790.0,0.5349991]
[1761241489074,0.01604688,110800.0,110790.0,0.5349991]
[1761241489973,0.01604688,110800.0,110790.0,0.55893247]
[1761241490374,0.01604688,110800.0,110790.0,0.15893247]
[1761241491080,0.01604688,110800.0,110790.0,0.5913067]
[1761241491480,0.01604688,110800.0,110790.0,0.55893247]
[1761241493074,0.01604688,110800.0,110790.0,0.5913067]
[1761241493569,0.01604688,110800.0,110790.0,0.55893247]
[1761241496882,0.01604688,110800.0,110790.0,0.15816247]
[1761241497678,0.01604688,110800.0,110790.0,0.55816247]
[1761241497880,0.01604688,110800.0,110790.0,0.15816247]
[1761241500583,0.01604688,110800.0,110790.0,0.55816247]
[1761241503479,0.01604688,110800.0,110790.0,0.15816247]
[1761241503788,0.01604688,110800.0,110790.0,0.4619091]
[1761241504088,0.01604688,110800.0,110790.0,0.8619091]
[1761241507286,0.05666927,110810.0,110800.0,0.0902309]
[1761241507482,0.02429416,110810.0,110800.0,0.1480809]
[1761241508285,0.03237511,110820.0,110800.0,0.88608102]
[1761241508286,0.05666927,110820.0,110800.0,0.88608102]
[1761241508479,0.05666927,110820.0,110810.0,0.4629227]
[1761241509487,0.06166927,110820.0,110810.0,0.4629227]
[1761241510081,0.06166927,110820.0,110810.0,0.1353227]
[1761241510287,0.15188387,110820.0,110810.0,0.1353227]
[1761241510485,0.06166927,110820.0,110810.0,0.1353227]
[1761241510986,0.05666927,110820.0,110810.0,0.1353227]
[1761241511186,0.06866927,110820.0,110810.0,0.1353227]
[1761241511776,0.06866927,110820.0,110810.0,0.1363227]
[1761241513684,0.012,110820.0,110810.0,0.1363227]
[1761241513989,0.03629416,110820.0,110810.0,0.1363227]
[1761241515390,0.03629416,110820.0,110810.0,0.14536833]
[1761241516884,0.012,110820.0,110810.0,0.14536833]
[1761241518595,0.012,110820.0,110810.0,0.47288833]
[1761241518795,0.03629416,110820.0,110810.0,0.47288833]
[1761241520294,0.03629416,110820.0,110810.0,0.14536833]
[1761241520487,0.03629416,110820.0,110810.0,0.47284833]
[1761241522290,0.03237517,110830.0,110810.0,1.21084845]
[1761241522482,0.09365605,110850.0,110830.0,0.1130965]
[1761241522683,0.0431,110850.0,110840.0,0.1480483]
[1761241524400,0.18183905,110860.0,110850.0,0.1333102]
[1761241524694,0.133283,110860.0,110850.0,0.1333102]
[1761241524890,0.0431,110860.0,110850.0,0.1333102]
[1761241526090,0.0431,110860.0,110850.0,0.4607502]
[1761241527200,0.0581,110860.0,110850.0,0.4617502]
[1761241532796,0.0581,110860.0,110850.0,0.4615902]
[1761241535093,0.0581,110860.0,110850.0,0.1343102]
[1761241535295,0.0581,110860.0,110850.0,0.4615502]
[1761241535500,0.0581,110860.0,110850.0,0.1343102]
[1761241535700,0.46268086,110900.0,110850.0,0.1343102]
[1761241535701,0.04845105,110900.0,110890.0,0.04303]
[1761241536007,0.0048,110910.0,110900.0,0.1464395]
[1761241536402,0.04933,110910.0,110900.0,0.1464395]
[1761241537006,0.1394714,110910.0,110900.0,0.1414395]
[1761241537211,0.1394714,110910.0,110900.0,0.15035128]
[1761241537602,0.1414714,110910.0,110900.0,0.15035128]
[1761241537805,0.1444714,110910.0,110900.0,0.15035128]
[1761241538005,0.1424714,110910.0,110900.0,0.15035128]
[1761241538204,0.1424714,110910.0,110900.0,0.15135128]
[1761241538911,0.05233,110910.0,110900.0,0.15135128]
[1761241541011,0.0078,110910.0,110900.0,0.35260189]
[1761241543119,0.02966,110910.0,110900.0,0.21116239]
[1761241543317,0.02966,110910.0,110850.0,0.02393337]
[1761241543318,0.104042,110860.0,110850.0,0.02393337]
[1761241543518,0.05839,110840.0,110830.0,0.06696337]
[1761241543825,0.05839,110840.0,110830.0,0.1332365]
[1761241544207,0.05839,110840.0,110830.0,0.33448711]
[1761241544513,0.05839,110840.0,110830.0,0.14224912]
[1761241544706,0.05839,110840.0,110830.0,0.74349973]
[1761241545216,0.05839,110840.0,110830.0,0.75849973]
[1761241545406,0.125905,110860.0,110830.0,0.84870623]
[1761241545610,0.1259021,110860.0,110850.0,0.1332202]
[1761241545811,0.1485721,110860.0,110850.0,0.1332202]
[1761241546011,0.1495721,110860.0,110850.0,0.1332202]
[1761241546212,0.05939,110860.0,110850.0,0.1332202]
[1761241546420,0.001,110860.0,110850.0,0.1332202]
[1761241546622,0.0911821,110860.0,110850.0,0.1332202]
[1761241546921,0.1495721,110860.0,110850.0,0.1332202]
[1761241547123,0.001,110860.0,110850.0,0.1372202]
[1761241547527,0.1130421,110860.0,110850.0,0.1372202]
[1761241547728,0.02286,110860.0,110850.0,0.1372202]
[1761241547933,0.001,110860.0,110850.0,0.1372202]
[1761241549230,0.001,110860.0,110850.0,0.5372202]
[1761241549432,0.001,110860.0,110850.0,0.73847081]
[1761241549628,0.001,110860.0,110850.0,0.5372202]
[1761241549932,0.001,110860.0,110850.0,0.73847081]
[1761241553933,0.23353115,110890.0,110880.0,0.0901658]
[1761241553934,0.02206,110890.0,110880.0,0.0901658]
[1761241554135,0.24573061,110890.0,110880.0,0.4617558]
[1761241554630,0.24573061,110890.0,110880.0,0.1346758]
[1761241554825,0.24573061,110890.0,110880.0,0.4617558]
[1761241555028,0.04448,110890.0,110880.0,0.4617558]
[1761241555236,0.1366377,110890.0,110880.0,0.4709593]
[1761241555438,0.16891824,110890.0,110880.0,0.4709593]
[1761241555636,0.04648,110890.0,110880.0,0.4709593]
[1761241556042,0.02406,110890.0,110880.0,0.4709593]
[1761241556242,0.002,110890.0,110880.0,0.4807593]
[1761241556633,0.002,110890.0,110880.0,0.68200991]
[1761241556938,0.002,110890.0,110880.0,0.68300991]
[1761241557740,1e-07,110890.0,110880.0,0.35592991]
[1761241557940,1e-07,110890.0,110880.0,0.4817193]
[1761241558834,1e-07,110890.0,110880.0,0.4816793]
[1761241560041,0.0444801,110890.0,110880.0,0.1448793]
[1761241560242,0.0444801,110890.0,110880.0,0.4718793]
[1761241560543,0.33588841,110890.0,110880.0,0.0911658]
[1761241560840,0.33588841,110890.0,110880.0,0.1356758]
[1761241562041,0.33588841,110890.0,110880.0,0.04551]
[1761241562243,0.33588841,110890.0,110880.0,0.1356758]
[1761241562941,1e-07,110890.0,110880.0,0.33692641]
[1761241563437,1e-07,110890.0,110880.0,0.1356758]
[1761241564241,1e-07,110890.0,110880.0,0.4626358]
[1761241566140,1e-07,110890.0,110880.0,0.66388641]
[1761241567446,1e-07,110890.0,110880.0,0.4626358]
[1761241567932,1e-07,110890.0,110880.0,0.33692641]
[1761241568145,1e-07,110890.0,110880.0,0.66384641]
[1761241568744,1e-07,110890.0,110880.0,0.68777978]
[1761241569641,0.03617,110880.0,110870.0,0.02386768]
[1761241569832,0.03617,110880.0,110830.0,0.0902062]